Workbook

Sheet 1
A1: Школа | B1: КОУОО «ОРЛОВСКАЯ ОБЩЕОБРАЗОВАТЕЛЬНАЯШКОЛА-ИНТЕРНАТ ДЛЯ ГЛУХИХ, СЛАБОСЛЫШАЩИХ И ПОЗДНООГЛОХШИХ ОБУЧАЮЩИХСЯ» | E1: Отд./корп | I1: Дата | J1: 2026-03-26
A3: Прием пищи | B3: Раздел | C3: № рец. | D3: Блюдо | E3: Выход, г | F3: Цена | G3: Калорийность | H3: Белки | I3: Жиры | J3: Углеводы
A4: Завтрак | B4: гор.блюдо | C4: 54-6к-2020, Новосибирск | D4: Каша молочная пшенная, яйцо | E4: 240 | F4: 24.45 | G4: 310.92 | H4: 7.42 | I4: 10.20 | J4: 38.82
B5: гор.напиток | C5: 54-21гн-2020, Новосибирск | D5: Какао с молоком | E5: 200 | F5: 8.46 | G5: 100.40 | H5: 4.60 | I5: 3.60 | J5: 12.60
B6: хлеб | C6: №344, Могильный, 2015 | D6: Бутерброд с маслом | E6: 90 | F6: 18.37 | G6: 82.50 | H6: 5.80 | I6: 4.90 | J6: 11.20
B7: фрукты | C7: пром | D7: Яблоко | E7: 100 | F7: 15.00 | G7: 34.20 | H7: 0.72 | I7: 0.18 | J7: 10.75
D9: Итого: | E9: =SUM(E4:E8) -> 630.00 | F9: =SUM(F4:F8) -> 66.28 | G9: =SUM(G4:G8) -> 528.02 | H9: 18.54 | I9: 18.88 | J9: 73.37
A10: Завтрак 2 | B10: напиток | C10: №389, Могильный, 2015 | D10: Сок | E10: 200 | F10: 8.50 | G10: 84.80 | H10: 1.00 | I10: 0.00 | J10: 20.20
E12: =SUM(E10:E11) -> 200.00 | F12: =SUM(F10:F11) -> 8.50 | G12: 84.80 | H12: 1.00 | I12: 0.00 | J12: 20.20
A13: Обед | B13: закуска | C13: №83,Курнешова,2006 | D13: Сельдь с луком | E13: 60 | F13: 6.05 | G13: 93.44 | H13: 4.91 | I13: 7.63 | J13: 13.25
B14: 1 блюдо | C14: 54-2с-2020, Новосибирск | D14: Борщ со сметаной на к/м бульоне | E14: 250 | F14: 24.6 | G14: 123.10 | H14: 5.75 | I14: 7.58 | J14: 22.60
B15: 2 блюдо | C15: 54-9м-2020, Новосибирск | D15: Жаркое по-домашнему | E15: 150 | F15: 36.44 | G15: 318.70 | H15: 11.08 | I15: 10.33 | J15: 20.50
B16: гарнир
B17: напиток | C17: 54-32хн-2020 Новосибирск | D17: Компот из свежих плодов (яблоки) | E17: 200 | F17: 3.51 | G17: 114.60 | H17: 0.16 | I17: 0.00 | J17: 25.88
B18: хлеб бел. | C18: пром
B19: хлеб черн. | C19: пром | D19: Хлеб ржаной | E19: 60 | F19: 2.44 | G19: 126.00 | H19: 4.20 | I19: 0.60 | J19: 25.80
D21: Итого | E21: =SUM(E13:E20) -> 720.00 | F21: =SUM(F13:F20) -> 73.04 | G21: =SUM(G13:G20) -> 775.84 | H21: 26.11 | I21: 26.14 | J21: 108.03
A22: Полдник | B22: булочное
A26: Ужин | B26: гор.блюдо
B27: гарнир
B28: напиток
B29: хлеб
B30: закуска
A32: Ужин 2 | B32: кисломол.
B33: булочное
B34: напиток
B35: фрукты
E36: =SUM(E32:E35) -> 0.00 | F36: =SUM(F32:F35) -> 0.00 | G36: 0.00 | H36: 0.00 | I36: 0.00 | J36: 0.00
D37: Всего | E37: =SUM(E36,E31,E25,E21,E12,E9) -> 1550.00 | F37: =SUM(F36,F31,F25,F21,F12,F9) -> 147.82 | G37: 1388.66 | H37: 45.65 | I37: 45.02 | J37: 201.60
